fUST/lending_fUST_20251128
["ID","MTS","AMOUNT","RATE_DAILY","PERIOD"]
[395002116,1764288639423,-500.0,9.65e-05,2]
[395002117,1764288639432,-500.0,9.65e-05,2]
[395002118,1764288639443,-500.0,9.65e-05,2]
[395002119,1764288639453,-500.0,9.65e-05,2]
[395002120,1764288639465,-388.46204826,9.65e-05,2]
[395002121,1764288639474,-500.0,9.65e-05,2]
[395002122,1764288639484,-536.10244026,9.65e-05,2]
[395002123,1764288639494,-500.0,9.65e-05,2]
[395002124,1764288639506,-500.0,9.65e-05,2]
[395002125,1764288639516,-500.0,9.65e-05,2]
[395002126,1764288639525,-500.0,9.65e-05,2]
[395002127,1764288639535,-500.0,9.65e-05,2]
[395002128,1764288639545,-500.0,9.65e-05,2]
[395002129,1764288639555,-500.0,9.65e-05,2]
[395002130,1764288639565,-500.0,9.65e-05,2]
[395002131,1764288639576,-500.0,9.65e-05,2]
[395002132,1764288639585,-500.0,9.65e-05,2]
[395002133,1764288639593,-500.0,9.65e-05,2]
[395002134,1764288639604,-14782.95041223,9.653e-05,2]
[395002135,1764288639618,-1582.3070308,9.653e-05,2]
[395002136,1764288639651,-10384.40112699,9.653e-05,2]
[395002139,1764288640708,-323.98544153,9.653e-05,2]
[395002140,1764288640720,-1470.922002,9.653e-05,2]
[395002141,1764288640732,-125419.6120031,9.653e-05,2]
[395002142,1764288640744,-10507.0,9.653e-05,2]
[395002143,1764288640759,-11188.22737744,9.653e-05,2]
[395002144,1764288640770,-22840.70730775,9.653e-05,2]
[395002145,1764288640782,-1807.19034913,9.653e-05,2]
[395002162,1764288645354,-47329.32359515,9.653e-05,2]
[395002163,1764288645365,-65982.30192581,9.653e-05,2]
[395002164,1764288645377,-29526.48054273,9.653e-05,2]
[395002165,1764288646363,-4151.97647766,9.653e-05,2]
[395002167,1764288646521,-494.293216,9.653e-05,2]
[395002168,1764288646532,-63653.293883,9.653e-05,2]
[395002169,1764288646674,-830.6395,9.653e-05,2]
[395002170,1764288666553,-496.75902954,9.46e-05,2]
[395002171,1764288666577,-270.22633253,9.556e-05,2]
[395002222,1764289832437,-527.0,8.994e-05,2]
[395002224,1764289832447,-224.0,8.994e-05,2]
[395002226,1764289832456,-150.0,9.2e-05,2]
[395002228,1764289832465,-74.72973871,9.36e-05,2]
[395002240,1764289832568,-255.49749186,9.36e-05,2]
[395002242,1764289832579,-442.49776943,9.36e-05,2]
[395002244,1764289832589,-185.038,9.36e-05,2]
[395002246,1764289832598,-300.0,9.532e-05,2]
[395002248,1764289832608,-1.72673871,9.532e-05,2]
[395002278,1764289838521,-279.10748082,9.532e-05,2]
[395002279,1764289838537,-302.0,9.532e-05,2]
[395002280,1764289838549,-107.16578047,9.532e-05,2]
[395002281,1764289838559,-6582.03686912,9.533e-05,2]
[395002282,1764289838589,-5582.1560482,9.533e-05,2]
[395002283,1764289838600,-17703.85151146,9.533e-05,2]
[395002284,1764289838611,-13840.7156276,9.533e-05,2]
[395002285,1764289838624,-320.80769379,9.533e-05,2]
[395002286,1764289838636,-2047.98103264,9.533e-05,2]
[395002292,1764289840713,-3922.45121719,9.533e-05,2]
[395002293,1764289840723,-519.41318722,9.533e-05,2]
[395002294,1764289840733,-511.52251541,9.533e-05,2]
[395002295,1764289840743,-500.0,9.533e-05,2]
[395002296,1764289840752,-500.0,9.533e-05,2]
[395002297,1764289840764,-500.0,9.533e-05,2]
[395002298,1764289840773,-309.59582408,9.533e-05,2]
[395002299,1764289840783,-500.0,9.546e-05,2]
[395002300,1764289840792,-500.0,9.546e-05,2]
[395002301,1764289840804,-500.0,9.546e-05,2]
[395002302,1764289840816,-500.0,9.546e-05,2]
[395002303,1764289840826,-250.0,9.546e-05,2]
[395002304,1764289840836,-322.70066541,9.55e-05,2]
[395002305,1764289840846,-594.02335773,9.55e-05,2]
[395002306,1764289840855,-500.0,9.55e-05,2]
[395002307,1764289840865,-500.0,9.55e-05,2]
[395002308,1764289840874,-634.60439748,9.55e-05,2]
[395002309,1764289840883,-532.2112468,9.55e-05,2]
[395002310,1764289840893,-500.0,9.55e-05,2]
[395002311,1764289840903,-500.0,9.55e-05,2]
[395002312,1764289840913,-500.0,9.55e-05,2]
[395002313,1764289840923,-500.0,9.55e-05,2]
[395002314,1764289840932,-554.0114849,9.55e-05,2]
[395002315,1764289840942,-500.0,9.551e-05,2]
[395002316,1764289840952,-566.43328787,9.551e-05,2]
[395002317,1764289840961,-644.0099997,9.552e-05,2]
[395002318,1764289841518,-1746.36081463,9.552e-05,2]
[395002321,1764289844682,-46243.14489022,9.552e-05,2]
[395002377,1764289847049,-448.4558267,9.55e-05,2]
[395002379,1764289847063,-500.0,9.55e-05,2]
[395002381,1764289847073,-572.88530999,9.552e-05,2]
[395002403,1764290081695,2000.0,0.00012,6]
[395002404,1764290144811,2000.0,0.00013,9]
[395002405,1764290157972,2000.0,0.0002,30]
[395002412,1764290901967,-221.0,8.465e-05,2]
[395002413,1764290901989,-272.58239231,8.508e-05,2]
[395002414,1764290902011,-6.41760769,8.551e-05,2]
[395002415,1764290968935,160.0,0.0002,30]
[395002416,1764290969839,160.0,0.0002,30]
[395002417,1764290993863,160.0,0.0002,30]
[395002470,1764291037677,-214.58239231,8.465e-05,2]
[395002471,1764291037688,-221.0,8.465e-05,2]
[395002472,1764291037704,-618.18,9.261e-05,2]
[395002473,1764291037716,-1200.0,9.431e-05,2]
[395002474,1764291037728,-348.49618782,9.432e-05,2]
[395002475,1764291037756,-851.50381218,9.432e-05,2]
[395002476,1764291037766,-300.0,9.432e-05,2]
[395002477,1764291037776,-500.0,9.433e-05,2]
[395002478,1764291037786,-304.39419643,9.433e-05,2]
[395002479,1764291037796,-285.20847033,9.433e-05,2]
[395002480,1764291037806,-500.0,9.433e-05,2]
[395002481,1764291037816,-500.0,9.433e-05,2]
[395002482,1764291037827,-500.0,9.433e-05,2]
[395002483,1764291037837,-1767.42352106,9.433e-05,2]
[395002484,1764291037850,-326.93934112,9.433e-05,2]
[395002485,1764291037863,-1269.67435598,9.433e-05,2]
[395002499,1764291622170,160.0,0.0002,30]
[395002500,1764291623376,160.0,0.0002,30]
[395002505,1764292027815,-500.0,8.875e-05,2]
[395002506,1764292084753,22681.2221783,0.0002,30]
[395002507,1764292191617,2000.0,9.1e-05,3]
[395002522,1764292231920,-250.0,8.786e-05,2]
[395002523,1764292231930,-224.0,8.875e-05,2]
[395002524,1764292231939,-126.0,8.965e-05,2]
[395002527,1764292238047,-250.0,8.698e-05,2]
[395002528,1764292238057,-141.58203506,8.965e-05,2]
[395002529,1764292238066,-789.76334601,9.1e-05,2]
[395002530,1764292238077,-504.32018305,9.1e-05,2]
[395002531,1764292238088,-320.0,9.1e-05,2]
[395002532,1764292238101,-385.91647094,9.1e-05,2]
[395002533,1764292238110,-494.544,9.146e-05,2]
[395002534,1764292238122,-1200.0,9.311e-05,2]
[395002535,1764292238131,-480.0,9.312e-05,2]
[395002536,1764292238141,-258.32782802,9.312e-05,2]
[395002537,1764292238172,-233538.03792217,9.213e-05,2]
[395002538,1764292238186,-4377.6038209,9.213e-05,2]
[395002540,1764292238200,-3520.04,9.213e-05,2]
[395002541,1764292238211,-1057.43089812,9.213e-05,2]
[395002542,1764292238223,-1224.82266252,9.213e-05,2]
[395002543,1764292238234,-540.61021453,9.213e-05,2]
[395002626,1764292656639,-270.22633253,8.938e-05,2]
[395002627,1764292805591,2000.0,9.1e-05,3]
[395002628,1764292807120,-292.41366747,8.938e-05,2]
[395002629,1764292807143,-204.34536207,8.938e-05,2]
[395002678,1764293432449,-224.0,8.673e-05,2]
[395002679,1764293432459,-224.0,8.761e-05,2]
[395002680,1764293432468,-224.0,8.849e-05,2]
[395002681,1764293432477,-224.0,8.938e-05,2]
[395002683,1764293432486,-269.88776666,8.972e-05,2]
[395002685,1764293432495,-500.0,9.073e-05,2]
[395002686,1764293432504,-500.0,9.073e-05,2]
[395002687,1764293432513,-204.11223334,9.073e-05,2]
[395002688,1764293434299,576.6,0.0002,30]
[395002739,1764293438164,-5.72214153,9.073e-05,2]
[395002741,1764293438173,-508.16433248,9.073e-05,2]
[395002743,1764293438183,-231.3154287,9.073e-05,2]
[395002744,1764293438194,-268.6845713,9.073e-05,2]
[395002745,1764293438204,-501.12602227,9.073e-05,2]
[395002746,1764293438213,-500.0,9.073e-05,2]
[395002747,1764293438223,-497.30685895,9.073e-05,2]
[395002748,1764293438233,-500.0,9.073e-05,2]
[395002749,1764293438243,-500.0,9.073e-05,2]
[395002750,1764293438252,-267.6763772,9.073e-05,2]
[395002751,1764293438261,-300.0,9.091e-05,2]
[395002752,1764293438271,-1200.0,9.091e-05,2]
[395002753,1764293438280,-155.31625899,9.092e-05,2]
[395002754,1764293438291,-91.18704252,9.092e-05,2]
[395002755,1764293438301,-500.0,9.092e-05,2]
[395002756,1764293438310,-500.0,9.092e-05,2]
[395002757,1764293438320,-500.0,9.092e-05,2]
[395002758,1764293438330,-500.0,9.092e-05,2]
[395002759,1764293438339,-570.9012616,9.092e-05,2]
[395002760,1764293438349,-500.0,9.092e-05,2]
[395002761,1764293438359,-500.0,9.092e-05,2]
[395002762,1764293438369,-500.0,9.092e-05,2]
[395002763,1764293438378,-500.0,9.092e-05,2]
[395002764,1764293438388,-500.0,9.092e-05,2]
[395002765,1764293438397,-500.0,9.092e-05,2]
[395002766,1764293438407,-500.0,9.092e-05,2]
[395002767,1764293438416,-500.0,9.092e-05,2]
[395002768,1764293438427,-500.0,9.092e-05,2]
[395002769,1764293438437,-360.22147217,9.092e-05,2]
[395002770,1764293438446,-329.02633821,9.092e-05,2]
[395002771,1764293438456,-500.0,9.092e-05,2]
[395002772,1764293438466,-297.885953,9.092e-05,2]
[395002773,1764293438476,-500.0,9.092e-05,2]
[395002774,1764293438485,-500.0,9.092e-05,2]
[395002775,1764293438495,-500.0,9.092e-05,2]
[395002776,1764293438506,-500.0,9.092e-05,2]
[395002777,1764293438515,-500.0,9.092e-05,2]
[395002778,1764293438525,-500.0,9.092e-05,2]
[395002779,1764293438534,-500.0,9.092e-05,2]
[395002780,1764293438544,-500.0,9.092e-05,2]
[395002781,1764293438553,-500.0,9.092e-05,2]
[395002782,1764293438563,-200.0,9.092e-05,2]
[395002783,1764293438573,-500.0,9.092e-05,2]
[395002784,1764293438582,-500.0,9.092e-05,2]
[395002785,1764293438592,-30.24291853,9.092e-05,2]
[395002787,1764293440295,-469.75708147,9.092e-05,2]
[395002788,1764293440304,-500.0,9.092e-05,2]
[395002789,1764293440313,-368.49867226,9.092e-05,2]
[395002790,1764293440322,-500.0,9.092e-05,2]
[395002791,1764293440331,-500.0,9.092e-05,2]
[395002792,1764293440340,-500.0,9.092e-05,2]
[395002793,1764293440348,-500.0,9.092e-05,2]
[395002794,1764293440357,-650.0,9.092e-05,2]
[395002795,1764293440366,-500.0,9.092e-05,2]
[395002796,1764293440375,-500.0,9.092e-05,2]
[395002797,1764293440383,-500.0,9.092e-05,2]
[395002798,1764293440392,-500.0,9.092e-05,2]
[395002799,1764293440401,-500.0,9.092e-05,2]
[395002800,1764293440409,-500.0,9.092e-05,2]
[395002801,1764293440418,-500.0,9.092e-05,2]
[395002802,1764293440427,-500.0,9.092e-05,2]
[395002803,1764293440436,-500.0,9.092e-05,2]
[395002804,1764293440445,-500.0,9.092e-05,2]
[395002805,1764293440454,-500.0,9.092e-05,2]
[395002806,1764293440463,-500.0,9.092e-05,2]
[395002807,1764293440472,-500.0,9.092e-05,2]
[395002808,1764293440480,-500.0,9.092e-05,2]
[395002809,1764293440489,-632.92323651,9.092e-05,2]
[395002810,1764293440498,-500.0,9.092e-05,2]
[395002811,1764293440507,-500.0,9.092e-05,2]
[395002812,1764293440517,-500.0,9.092e-05,2]
[395002813,1764293440526,-500.0,9.092e-05,2]
[395002814,1764293440535,-500.0,9.092e-05,2]
[395002815,1764293440545,-500.0,9.092e-05,2]
[395002816,1764293440554,-500.0,9.092e-05,2]
[395002817,1764293440563,-500.0,9.092e-05,2]
[395002818,1764293440572,-500.0,9.092e-05,2]
[395002819,1764293440582,-500.0,9.092e-05,2]
[395002821,1764293440591,-500.0,9.092e-05,2]
[395002822,1764293440600,-625.2830294,9.092e-05,2]
[395002823,1764293440610,-160282.8701152,9.093e-05,2]
[395002831,1764293444519,-5019.57120261,9.093e-05,2]
[395002838,1764293446555,-500.0,9.073e-05,2]
[395002839,1764293446565,-5291.03913834,9.093e-05,2]
[395002840,1764293446576,-20204.83729994,9.093e-05,2]
[395002841,1764293464997,150.0,0.000143,30]
[395002842,1764293550390,159.0,0.0002,30]
[395002843,1764293611030,1000.0,9.1e-05,3]
[395002844,1764293766532,-1680.3531664,8.036e-05,2]
[395002845,1764293766555,-54.51903315,8.327e-05,2]
[395002846,1764293841534,-222.2503421,8.161e-05,2]
[395002847,1764293841555,-107.7496579,8.243e-05,2]
[395002849,1764294074070,196.29972721,0.0002,30]
[395002850,1764294516631,-279.0,7.761e-05,2]
[395002851,1764294521244,-54.5006842,7.761e-05,2]
[395002852,1764294521265,-166.4993158,7.839e-05,2]
[395002883,1764294632315,-167.0013684,7.683e-05,2]
[395002885,1764294632326,-215.0,7.683e-05,2]
[395002886,1764294632335,-167.0013684,7.761e-05,2]
[395002888,1764294632344,-278.67899459,7.958e-05,2]
[395002890,1764294632353,-199.0,8.971e-05,2]
[395002892,1764294632363,-300.0,8.971e-05,2]
[395002894,1764294632372,-1200.0,8.971e-05,2]
[395002896,1764294632382,-608.18203253,8.972e-05,2]
[395002898,1764294632391,-500.0,8.972e-05,2]
[395002900,1764294632400,-500.0,8.972e-05,2]
[395002903,1764294632410,-500.0,8.972e-05,2]
[395002906,1764294632419,-218.48246582,8.972e-05,2]
[395002909,1764294632428,-571.44725571,8.972e-05,2]
[395002912,1764294632437,-500.0,8.972e-05,2]
[395002915,1764294632446,-500.0,8.972e-05,2]
[395002917,1764294632455,-500.0,8.972e-05,2]
[395002918,1764294632464,-500.0,8.972e-05,2]
[395002920,1764294632473,-500.0,8.972e-05,2]
[395002921,1764294632482,-500.0,8.972e-05,2]
[395002922,1764294632491,-500.0,8.972e-05,2]
[395002923,1764294632499,-500.0,8.972e-05,2]
[395002924,1764294632508,-508.08091895,8.972e-05,2]
[395002925,1764294632517,-500.0,8.972e-05,2]
[395002926,1764294632526,-500.0,8.972e-05,2]
[395002927,1764294632535,-500.0,8.972e-05,2]
[395002928,1764294632544,-500.0,8.972e-05,2]
[395002929,1764294632554,-500.0,8.972e-05,2]
[395002930,1764294632563,-500.0,8.972e-05,2]
[395002931,1764294632572,-500.0,8.972e-05,2]
[395002932,1764294632581,-287.74779682,8.972e-05,2]
[395002933,1764294632590,-500.0,8.972e-05,2]
[395002934,1764294632599,-500.0,8.972e-05,2]
[395002935,1764294632607,-166.66,8.972e-05,2]
[395002936,1764294632616,-2152.0351145,8.973e-05,2]
[395002950,1764294638228,-298.90730184,7.606e-05,2]
[395002951,1764294638237,-6208.78868522,8.973e-05,2]
[395002952,1764294638341,-6198.9802446,8.973e-05,2]
[395002953,1764294638352,-9904.85776516,8.973e-05,2]
[395002954,1764294638364,-21933.62210381,8.973e-05,2]
[395002955,1764294638375,-21015.40392329,8.973e-05,2]
[395002956,1764294638436,-3291.06443375,8.973e-05,2]
[395002962,1764294640488,-614.8492,8.973e-05,2]
[395002963,1764294640593,-2e-08,8.973e-05,2]
[395002964,1764294640603,-1086.86268639,8.973e-05,2]
[395002983,1764294644554,-223.98802338,8.835e-05,2]
[395002984,1764294644563,-306.21682977,8.883e-05,2]
[395002985,1764294644573,-238.70438066,8.973e-05,2]
[395002988,1764295024193,1489.8,0.0002,30]
[395002990,1764295352887,160.0,0.0002,30]
[395002992,1764295391933,10000.0,0.000215,120]
[395002993,1764295426040,5000.0,0.0001333,9]
[395002994,1764295434146,209.73439016,0.0001333,9]
[395002997,1764295761612,-709.08137451,7.963e-05,2]
[395002998,1764295761634,-19.58779333,8.063e-05,2]
[395003008,1764295832448,-258.96926921,8.063e-05,2]
[395003009,1764295832458,-218.0,8.063e-05,2]
[395003010,1764295832468,-278.55706254,8.145e-05,2]
[395003011,1764295832478,-1200.0,8.35e-05,2]
[395003013,1764295832488,-1200.0,8.351e-05,2]
[395003015,1764295832498,-300.0,8.351e-05,2]
[395003016,1764295832507,-3612.0,8.352e-05,2]
[395003018,1764295832517,-500.0,8.516e-05,2]
[395003020,1764295832526,-500.0,8.516e-05,2]
[395003021,1764295832535,-500.0,8.516e-05,2]
[395003023,1764295832545,-500.0,8.516e-05,2]
[395003025,1764295832555,-500.0,8.516e-05,2]
[395003027,1764295832564,-500.0,8.516e-05,2]
[395003028,1764295832574,-500.0,8.516e-05,2]
[395003030,1764295832583,-178.5593597,8.516e-05,2]
[395003031,1764295832592,-500.0,8.516e-05,2]
[395003033,1764295832601,-305.37434158,8.516e-05,2]
[395003035,1764295832610,-500.0,8.516e-05,2]
[395003036,1764295832619,-500.0,8.516e-05,2]
[395003037,1764295832628,-500.0,8.516e-05,2]
[395003038,1764295832638,-500.0,8.516e-05,2]
[395003039,1764295832648,-500.0,8.516e-05,2]
[395003040,1764295832657,-500.0,8.516e-05,2]
[395003041,1764295832666,-500.0,8.516e-05,2]
[395003042,1764295832676,-500.0,8.516e-05,2]
[395003043,1764295832685,-500.0,8.516e-05,2]
[395003044,1764295832694,-500.0,8.516e-05,2]
[395003045,1764295832703,-500.0,8.516e-05,2]
[395003046,1764295832712,-500.0,8.516e-05,2]
[395003047,1764295832722,-500.0,8.516e-05,2]
[395003048,1764295832731,-500.0,8.516e-05,2]
[395003049,1764295832741,-500.0,8.516e-05,2]
[395003050,1764295832750,-500.0,8.516e-05,2]
[395003051,1764295832759,-500.0,8.516e-05,2]
[395003052,1764295832768,-500.0,8.516e-05,2]
[395003053,1764295832778,-500.0,8.516e-05,2]
[395003054,1764295832787,-500.0,8.516e-05,2]
[395003055,1764295832796,-500.0,8.516e-05,2]
[395003056,1764295832805,-500.0,8.516e-05,2]
[395003057,1764295832815,-263.09152837,8.516e-05,2]
[395003059,1764295838411,-476.96926921,7.982e-05,2]
[395003060,1764295838422,-236.90847163,8.516e-05,2]
[395003061,1764295838433,-500.0,8.516e-05,2]
[395003062,1764295838443,-500.0,8.516e-05,2]
[395003063,1764295838453,-500.0,8.516e-05,2]
[395003064,1764295838462,-500.0,8.516e-05,2]
[395003065,1764295838472,-500.0,8.516e-05,2]
[395003066,1764295838482,-500.0,8.516e-05,2]
[395003067,1764295838491,-500.0,8.516e-05,2]
[395003068,1764295838501,-500.0,8.516e-05,2]
[395003069,1764295838510,-500.0,8.516e-05,2]
[395003070,1764295838520,-500.0,8.516e-05,2]
[395003071,1764295838530,-500.0,8.516e-05,2]
[395003072,1764295838539,-500.0,8.516e-05,2]
[395003073,1764295838553,-500.0,8.516e-05,2]
[395003074,1764295838564,-500.0,8.516e-05,2]
[395003075,1764295838574,-500.0,8.516e-05,2]
[395003076,1764295838583,-500.0,8.516e-05,2]
[395003077,1764295838593,-500.0,8.516e-05,2]
[395003078,1764295838602,-500.0,8.516e-05,2]
[395003079,1764295838612,-500.0,8.516e-05,2]
[395003080,1764295838622,-500.0,8.516e-05,2]
[395003081,1764295838632,-500.0,8.516e-05,2]
[395003082,1764295838641,-500.0,8.516e-05,2]
[395003083,1764295838651,-500.0,8.516e-05,2]
[395003084,1764295838661,-500.0,8.516e-05,2]
[395003085,1764295838670,-500.0,8.516e-05,2]
[395003086,1764295838679,-500.0,8.516e-05,2]
[395003087,1764295838689,-500.0,8.516e-05,2]
[395003088,1764295838698,-500.0,8.516e-05,2]
[395003089,1764295838707,-78.3912564,8.516e-05,2]
[395003090,1764295838718,-421.6087436,8.516e-05,2]
[395003091,1764295838728,-500.0,8.516e-05,2]
[395003092,1764295838738,-500.0,8.516e-05,2]
[395003093,1764295838749,-500.0,8.516e-05,2]
[395003094,1764295838758,-320.50186484,8.516e-05,2]
[395003095,1764295838768,-1241.96378837,8.516e-05,2]
[395003096,1764295838784,-4114.16,8.516e-05,2]
[395003097,1764295838795,-23322.64253795,8.516e-05,2]
[395003098,1764295838825,-4404.5433117,8.516e-05,2]
[395003108,1764295840565,-632.41931362,8.516e-05,2]
[395003109,1764295840576,-1242.57155899,8.516e-05,2]
[395003110,1764295840619,-8011.31317701,8.516e-05,2]
[395003111,1764295840630,-1525.57541363,8.516e-05,2]
[395003112,1764295840641,-5504.81089873,8.516e-05,2]
[395003113,1764295840650,-500.0,8.517e-05,2]
[395003114,1764295840660,-151.0,8.517e-05,2]
[395003115,1764295840670,-1404.0,8.517e-05,2]
[395003116,1764295840679,-300.0,8.518e-05,2]
[395003117,1764295840689,-300.0,8.518e-05,2]
[395003118,1764295840698,-300.0,8.518e-05,2]
[395003119,1764295840708,-300.0,8.518e-05,2]
[395003120,1764295840717,-300.0,8.518e-05,2]
[395003121,1764295840726,-300.0,8.518e-05,2]
[395003122,1764295840736,-300.0,8.518e-05,2]
[395003123,1764295840745,-300.0,8.518e-05,2]
[395003124,1764295840754,-300.0,8.518e-05,2]
[395003125,1764295840764,-300.0,8.518e-05,2]
[395003126,1764295840773,-300.0,8.518e-05,2]
[395003127,1764295840782,-300.0,8.518e-05,2]
[395003128,1764295840792,-300.0,8.518e-05,2]
[395003129,1764295840800,-300.0,8.518e-05,2]
[395003130,1764295840810,-300.0,8.518e-05,2]
[395003131,1764295840819,-151.0,8.654e-05,2]
[395003132,1764295840828,-1404.0,8.654e-05,2]
[395003133,1764295840838,-600.0,8.687e-05,2]
[395003134,1764295840847,-570.48858445,8.791e-05,2]
[395003135,1764295840856,-151.0,8.791e-05,2]
[395003136,1764295840865,-1404.0,8.791e-05,2]
[395003137,1764295840874,-454.865,8.833e-05,2]
[395003138,1764295840884,-485.26602786,8.852e-05,2]
[395003139,1764295840893,-8135.74958057,8.853e-05,2]
[395003140,1764295840904,-1595.8,8.853e-05,2]
[395003141,1764295840915,-594.4003059,8.853e-05,2]
[395003160,1764295844771,-15252.55600427,8.853e-05,2]
[395003161,1764295844782,-5533.5400021,8.853e-05,2]
[395003162,1764295844825,-9640.72214699,8.853e-05,2]
[395003183,1764295846559,-18435.40998187,8.853e-05,2]
[395003184,1764295867512,160.0,0.00014734,25]
[395003185,1764295867800,160.0,0.00014687,24]
[395003186,1764295868105,160.0,0.00014641,23]
[395003187,1764295868419,160.0,0.00014594,22]
[395003188,1764295868704,160.0,0.00014548,21]
[395003189,1764295869007,160.0,0.00014501,20]
[395003190,1764295869324,160.0,0.00014455,19]
[395003221,1764297032666,-498.24587461,8.333e-05,2]
[395003222,1764297032675,-220.0,8.417e-05,2]
[395003223,1764297032684,-278.24587461,8.46e-05,2]
[395003224,1764297032693,-300.0,8.685e-05,2]
[395003226,1764297032703,-1200.0,8.685e-05,2]
[395003228,1764297032712,-1960.7786778,8.686e-05,2]
[395003230,1764297032721,-1738.2490872,8.686e-05,2]
[395003232,1764297032730,-34757.6358833,8.686e-05,2]
[395003234,1764297032739,-500.28482729,8.733e-05,2]
[395003236,1764297032747,-8291.36661711,8.75e-05,2]
[395003244,1764297038736,-10479.27124687,8.75e-05,2]
[395003305,1764297138439,2005.07,9.1e-05,3]
[395003306,1764297512081,734.95513339,0.00010959,7]
[395003307,1764297580812,-363.892,8.407e-05,2]
[395003308,1764297580839,-277.83571137,8.535e-05,2]
[395003309,1764297580865,-363.892,8.578e-05,2]
[395003310,1764297581584,-1200.0,8.649e-05,2]
[395003311,1764297581615,-300.0,8.649e-05,2]
[395003312,1764297581635,-50000.0,8.65e-05,2]
[395003313,1764297581655,-184.76134456,8.65e-05,2]
[395003314,1764297581676,-409.55450963,8.65e-05,2]
[395003315,1764297581699,-500.0,8.65e-05,2]
[395003316,1764297581724,-500.0,8.65e-05,2]
[395003317,1764297581748,-500.0,8.65e-05,2]
[395003318,1764297581771,-499.67033945,8.65e-05,2]
[395003319,1764297581792,-500.0,8.65e-05,2]
[395003320,1764297581814,-500.0,8.65e-05,2]
[395003321,1764297581839,-500.0,8.65e-05,2]
[395003322,1764297581869,-500.0,8.65e-05,2]
[395003323,1764297581893,-500.0,8.65e-05,2]
[395003324,1764297581920,-500.0,8.65e-05,2]
[395003325,1764297581942,-500.0,8.65e-05,2]
[395003326,1764297581964,-481.12260765,8.65e-05,2]
[395003327,1764297581987,-500.0,8.65e-05,2]
[395003328,1764297582009,-500.0,8.65e-05,2]
[395003329,1764297582033,-500.0,8.65e-05,2]
[395003330,1764297582054,-500.0,8.65e-05,2]
[395003331,1764297582078,-500.0,8.65e-05,2]
[395003332,1764297582102,-228.05503712,8.65e-05,2]
[395003333,1764297582128,-500.0,8.65e-05,2]
[395003334,1764297582151,-500.0,8.65e-05,2]
[395003335,1764297582175,-500.0,8.65e-05,2]
[395003336,1764297582200,-500.0,8.65e-05,2]
[395003337,1764297582223,-500.0,8.65e-05,2]
[395003338,1764297582247,-500.0,8.65e-05,2]
[395003339,1764297582269,-500.0,8.65e-05,2]
[395003340,1764297582292,-500.0,8.65e-05,2]
[395003341,1764297582318,-500.0,8.65e-05,2]
[395003342,1764297582343,-500.0,8.65e-05,2]
[395003343,1764297582367,-500.0,8.65e-05,2]
[395003344,1764297582390,-500.0,8.65e-05,2]
[395003345,1764297582413,-500.0,8.65e-05,2]
[395003346,1764297582439,-515.58948983,8.65e-05,2]
[395003347,1764297582464,-500.0,8.65e-05,2]
[395003348,1764297582487,-500.0,8.65e-05,2]
[395003349,1764297582511,-500.0,8.65e-05,2]
[395003350,1764297582536,-500.0,8.65e-05,2]
[395003351,1764297582559,-500.0,8.65e-05,2]
[395003352,1764297582581,-500.0,8.65e-05,2]
[395003353,1764297582605,-500.0,8.65e-05,2]
[395003354,1764297582627,-500.0,8.65e-05,2]
[395003355,1764297582651,-500.0,8.65e-05,2]
[395003356,1764297582675,-500.0,8.65e-05,2]
[395003357,1764297582702,-223.95438776,8.65e-05,2]
[395003358,1764297582729,-500.0,8.65e-05,2]
[395003359,1764297582753,-500.0,8.65e-05,2]
[395003360,1764297582779,-500.0,8.65e-05,2]
[395003361,1764297582802,-500.0,8.65e-05,2]
[395003362,1764297582823,-1200.0,8.65e-05,2]
[395003363,1764297582847,-172751.67257263,8.651e-05,2]
[395003366,1764297943053,-160.0,0.00014827,27]
[395003367,1764298062086,-150.0,0.0001478,26]
[395003368,1764298169977,440.97308003,0.00010959,7]
[395003369,1764298174628,-150.0,0.00014408,18]
[395003378,1764298231761,-272.27899714,8.435e-05,2]
[395003379,1764298231770,-220.0,8.435e-05,2]
[395003380,1764298231780,-146.46011773,8.478e-05,2]